bitfinex-derivatives/quotes_SOLF0:USTF0_20241105
["timestamp","ask_amount","ask_price","bid_price","bid_amount"]
[1730837019296,30.43404374,165.45,165.29,30.43404374]
[1730837019498,30.43404374,165.45,165.32,18.58744237]
[1730837019499,6.48,165.43,165.32,18.58744237]
[1730837019707,3.0235,165.36,165.32,18.58744237]
[1730837019996,6.48,165.43,165.32,18.58744237]
[1730837020202,6.48,165.43,165.32,21.61164237]
[1730837020807,3.0235,165.37,165.32,21.61164237]
[1730837021004,6.48,165.43,165.32,21.61164237]
[1730837021303,6.48,165.43,165.32,18.58744237]
[1730837021703,3.0239,165.34,165.3,1.3211]
[1730837022099,25.06744237,165.43,165.3,4.3457]
[1730837022299,3.0238,165.35,165.3,4.3457]
[1730837022500,25.06744237,165.43,165.3,4.3457]
[1730837023106,1.316,165.45,165.34,18.58744237]
[1730837023603,3.0225,165.42,165.35,3.0236]
[1730837023798,1.316,165.45,165.35,3.0236]
[1730837024208,18.58744237,165.49,165.36,3.0235]
[1730837024399,24.74744237,165.49,165.36,3.0235]
[1730837024794,3.0226,165.42,165.36,3.0235]
[1730837025205,36.94744237,165.46,165.31,19.96194237]
[1730837025400,18.58744237,165.43,165.31,19.96194237]
[1730837025598,18.58744237,165.43,165.31,1.3745]
[1730837025805,3.0242,165.32,165.3,1.3211]
[1730837026195,18.58744237,165.4,165.28,1.3381]
[1730837026403,3.0244,165.31,165.28,1.3381]
[1730837026700,18.58744237,165.4,165.28,1.3381]
[1730837027409,3.0244,165.32,165.28,1.3381]
[1730837027800,18.58744237,165.4,165.28,1.3381]
[1730837028104,36.94744237,165.4,165.28,1.3381]
[1730837028502,3.0248,165.29,165.28,1.3381]
[1730837029206,6.16,165.34,165.2,18.58744237]
[1730837029513,6.16,165.34,165.18,18.58744237]
[1730837029514,18.58744237,165.32,165.18,18.58744237]
[1730837029806,1.3466,165.31,165.18,18.58744237]
[1730837030206,3.0258,165.24,165.18,18.58744237]
[1730837030408,1.3466,165.31,165.18,18.58744237]
[1730837030607,1.3466,165.31,164.87,2.77348766]
[1730837030608,18.58744237,165.26,165.12,3.0279]
[1730837031006,3.0268,165.19,165.13,1.35]
[1730837031313,6.16,165.27,165.14,30.2316099]
[1730837031500,30.2316099,165.25,165.13,1.35]
[1730837031705,30.2316099,165.22,165.13,1.35]
[1730837032011,6.16,165.27,165.08,1.269]
[1730837032012,30.2316099,165.2,165.08,1.269]
[1730837032314,6.16,165.19,165.08,31.5006099]
[1730837032607,3.027,165.18,165.11,30.2316099]
[1730837032811,6.16,165.21,165.11,30.2316099]
[1730837033005,6.16,165.21,165.11,33.2595099]
[1730837033310,3.0268,165.18,165.11,30.2316099]
[1730837033497,6.18,165.22,165.14,30.2316099]
[1730837033906,1.3605,165.29,165.17,30.2316099]
[1730837034111,3.026,165.23,165.17,30.2316099]
[1730837034708,3.026,165.23,165.08,1.269]
[1730837034709,3.0266,165.2,165.14,33.2591099]
[1730837035111,30.2316099,165.28,165.11,30.2316099]
[1730837035299,3.0272,165.17,165.11,30.2316099]
[1730837035507,30.2316099,165.22,165.09,30.2316099]
[1730837035816,3.0275,165.15,165.09,30.2316099]
[1730837036206,30.2316099,165.22,165.09,30.2316099]
[1730837036403,30.2316099,165.22,165.11,3.028]
[1730837036701,30.2316099,165.22,165.09,30.2316099]
[1730837036903,30.2316099,165.22,165.1,3.0283]
[1730837037510,3.0275,165.15,165.09,30.2316099]
[1730837038613,3.0275,165.15,165.09,33.2600099]
[1730837040815,3.0275,165.14,165.09,30.2316099]
[1730837041415,3.0275,165.14,165.09,33.2600099]
[1730837042111,5.88,165.22,165.12,30.2316099]
[1730837042304,2.7323,165.24,165.09,30.2316099]
[1730837042505,2.7323,165.24,165.08,1.269]
[1730837042506,30.2316099,165.2,165.08,1.269]
[1730837042918,1.3462,165.19,165.08,1.269]
[1730837043117,3.028,165.12,165.08,1.269]
[1730837044113,1.3462,165.19,165.06,30.2316099]
[1730837044314,30.2316099,165.17,165.04,1.3348]
[1730837044518,1.3462,165.19,165.04,1.3348]
[1730837044519,30.2316099,165.15,165.04,1.3348]
[1730837044821,7.1696,165.14,165.04,1.3348]
[1730837045121,1.2896,165.14,165.04,1.3348]
[1730837045316,7.1696,165.14,165.04,1.3348]
[1730837045718,3.0277,165.13,165.06,30.2316099]
[1730837045921,3.0277,165.13,165.07,3.0287]
[1730837046219,5.88,165.18,165.09,30.2316099]
[1730837046408,5.88,165.18,165.1,3.0282]
[1730837046609,1.3462,165.19,165.09,30.2316099]
[1730837046811,1.347,165.24,165.11,30.2316099]
[1730837047011,7.227,165.24,165.13,3.0277]
[1730837047617,7.227,165.24,165.11,30.2316099]
[1730837047924,30.2316099,165.22,165.08,30.2316099]
[1730837048420,7.227,165.24,165.11,30.2316099]
[1730837048610,7.227,165.24,165.12,1.3799]
[1730837048816,3.0268,165.18,165.12,4.4077]
[1730837049218,7.227,165.24,165.12,1.3799]
[1730837049412,7.227,165.24,165.13,1.392]
[1730837049726,44.9213,165.25,165.14,30.2316099]
[1730837050022,3.0262,165.22,165.16,3.0271]
[1730837050219,30.2316099,165.28,165.14,30.2316099]
[1730837050220,5.88,165.28,165.14,30.2316099]
[1730837050425,5.88,165.28,165.15,1.3884]
[1730837050626,5.88,165.28,165.17,30.2316099]
[1730837050926,5.88,165.35,165.23,30.2316099]
[1730837051122,5.88,165.35,165.25,30.2316099]
[1730837051320,1.2606,165.39,165.26,1.2742]
[1730837051523,1.2606,165.39,165.28,30.2316099]
[1730837051719,5.88,165.41,165.3,30.2316099]
[1730837052116,1.3621,165.43,165.32,3.0241]
[1730837052419,7.2421,165.43,165.32,3.0241]
[1730837052615,3.0233,165.37,165.3,33.2560099]
[1730837052822,7.2421,165.43,165.3,30.2316099]
[1730837053021,1.3621,165.43,165.3,30.2316099]
[1730837053523,1.3621,165.43,165.28,5.88]
[1730837053816,3.0237,165.36,165.29,3.0247]
[1730837054018,30.2316099,165.41,165.27,30.2316099]
[1730837054924,3.0234,165.37,165.29,3.0248]
[1730837055118,30.2316099,165.41,165.29,3.0248]
[1730837055623,3.0237,165.36,165.29,3.0248]
[1730837056019,30.2316099,165.41,165.27,30.2316099]
[1730837056724,30.2316099,165.41,165.29,3.0247]
[1730837057127,3.0236,165.36,165.29,3.0247]
[1730837057322,1.3621,165.43,165.27,30.2316099]
[1730837057523,30.2316099,165.4,165.24,1.2601]
[1730837057739,30.2316099,165.4,165.25,30.2316099]
[1730837058028,3.0236,165.36,165.3,3.0245]
[1730837058228,30.2316099,165.4,165.26,1.3588]
[1730837058828,30.2316099,165.4,165.29,3.0248]
[1730837059025,3.0242,165.33,165.26,1.3588]
[1730837059430,30.2316099,165.4,165.26,1.3588]
[1730837059631,30.2316099,165.35,165.23,30.2316099]
[1730837059835,30.2316099,165.32,165.2,30.2316099]
[1730837060132,30.2316099,165.32,165.19,3.0264]
[1730837060328,30.2316099,165.32,165.16,2.5254]
[1730837060329,30.2316099,165.3,165.16,2.5254]
[1730837060529,30.2316099,165.27,165.16,2.5254]
[1730837060724,3.0264,165.2,165.16,1.2664]
[1730837060928,36.1116099,165.27,165.16,1.2664]
[1730837061725,30.2316099,165.24,165.12,31.6120099]
[1730837061924,30.2316099,165.24,165.12,32.8793099]
[1730837062622,36.1116099,165.27,165.12,32.8793099]
[1730837062929,30.2316099,165.3,165.17,30.2316099]
[1730837063133,35.7916099,165.3,165.17,30.2316099]
[1730837063533,3.0249,165.29,165.22,3.026]
[1730837063834,3.9515,165.34,165.2,30.2316099]
[1730837064029,3.9515,165.34,165.21,3.0262]
[1730837064234,3.9515,165.34,165.2,30.2316099]
[1730837065428,3.9515,165.34,165.21,1.2586]
[1730837065734,3.9515,165.34,165.22,30.2316099]
[1730837065942,3.0246,165.31,165.25,3.0255]
[1730837066162,3.9515,165.34,165.22,30.2316099]
[1730837066436,3.03871748,165.51,165.28,30.2316099]
[1730837066437,5.56,165.41,165.28,30.2316099]
[1730837066627,6.8268,165.41,165.28,30.2316099]
[1730837067034,3.0233,165.37,165.31,3.0244]
[1730837067228,6.8268,165.41,165.3,30.2316099]
[1730837067426,6.8268,165.41,165.31,1.3089]
[1730837067629,3.0229,165.4,165.33,3.0239]
[1730837067832,3.0229,165.4,165.33,30.2316099]
[1730837068032,2.7049,165.43,165.33,30.2316099]
[1730837068238,3.0229,165.4,165.33,33.2555099]
[1730837068626,2.7049,165.43,165.33,33.2555099]
[1730837068627,5.56,165.45,165.33,30.2316099]
[1730837068831,5.56,165.45,165.34,3.0237]
[1730837069732,30.2316099,165.44,165.32,2.6313]
[1730837070235,3.0233,165.38,165.32,2.6313]
[1730837070639,3.024,165.34,165.31,1.3089]
[1730837070936,30.2316099,165.41,165.27,35.7916099]
[1730837071142,3.0236,165.36,165.28,1.2687]
[1730837071636,30.2316099,165.41,165.28,1.2687]
[1730837072339,30.2316099,165.41,165.29,3.0247]
[1730837072734,30.2316099,165.41,165.28,1.2687]
[1730837073043,3.0241,165.33,165.28,1.2687]
[1730837073239,35.7916099,165.38,165.25,33.2570099]
[1730837073435,3.0247,165.3,165.23,5.56]
[1730837073647,9.5079,165.37,165.23,5.56]
[1730837073845,9.5079,165.37,165.29,3.0247]
[1730837074042,5.56,165.42,165.27,30.2316099]
[1730837074351,1.305,165.42,165.31,3.0244]
[1730837074542,3.0232,165.38,165.27,30.2316099]
[1730837074747,1.305,165.42,165.3,30.2316099]
[1730837074943,1.305,165.42,165.34,3.0238]
[1730837075143,3.023,165.39,165.34,3.0238]
[1730837075541,1.305,165.42,165.33,3.024]
[1730837075843,1.305,165.42,165.31,9.6019]
[1730837076048,1.305,165.42,165.33,3.024]
[1730837076437,3.0231,165.39,165.33,3.024]
[1730837077450,1.305,165.42,165.33,3.024]
[1730837077651,1.305,165.42,165.33,30.2316099]
[1730837077848,1.305,165.42,165.17,367.3337]
[1730837077849,30.2316099,165.38,165.17,349.0537]
[1730837078150,30.2316099,165.38,165.06,3.06265133]
[1730837078151,3.0242,165.33,165.26,3.0252]
[1730837078347,30.2316099,165.38,165.26,30.2316099]
[1730837078650,5.56,165.39,165.27,3.9444]
[1730837078847,5.56,165.39,165.31,3.0243]
[1730837078848,3.0235,165.36,165.31,3.0243]
[1730837079047,1.2618,165.43,165.31,30.2316099]
[1730837079447,1.2618,165.43,165.34,3.0238]
[1730837079448,3.0231,165.39,165.34,3.0238]
[1730837079856,3.0231,165.39,165.31,30.2316099]
[1730837080048,3.0226,165.41,165.34,33.2554099]
[1730837080248,32.9398099,165.46,165.34,35.7916099]
[1730837080455,32.9398099,165.46,165.34,5.56]
[1730837080647,3.023,165.39,165.34,8.5837]
[1730837081352,3.023,165.39,165.34,5.56]
[1730837081554,32.9398099,165.46,165.34,35.7916099]
[1730837082054,3.0229,165.4,165.34,35.7916099]
[1730837083356,3.0229,165.4,165.36,3.0234]
[1730837083862,32.9398099,165.46,165.34,8.5838]
[1730837083863,3.0232,165.38,165.34,8.5838]
[1730837084855,4.83900684,165.37,165.35,3.0237]
[1730837085059,4.83900684,165.37,165.29,30.2316099]
[1730837085259,4.83900684,165.37,165.28,18.59311341]
[1730837085466,4.83900684,165.37,165.32,3.0241]
[1730837085757,18.59311341,165.42,165.32,3.0241]
[1730837086065,0.24179,165.48,165.36,18.59311341]
[1730837086356,3.0223,165.43,165.39,3.0228]
[1730837087763,0.24179,165.48,165.37,3.844]
[1730837088566,3.0222,165.43,165.39,3.0229]
[1730837089668,3.0221,165.44,165.4,3.0227]
[1730837089872,26.71682408,165.43,165.4,3.0227]
[1730837090172,4.83546913,165.42,165.39,18.59311341]
[1730837090367,4.83546913,165.41,165.39,18.59311341]
[1730837090566,8.20568134,165.42,165.39,18.59311341]
[1730837090770,8.20568134,165.42,165.4,3.0227]
[1730837090970,8.20568134,165.42,165.37,3.844]
[1730837090971,4.83346571,165.41,165.37,3.844]
[1730837091165,8.20568134,165.42,165.38,5.26]
[1730837091476,0.24179,165.48,165.38,5.26]
[1730837091676,0.24179,165.48,165.38,8.283]
[1730837091970,18.59311341,165.47,165.37,1.2916]
[1730837092179,3.0229,165.4,165.37,1.2916]
[1730837092568,18.59311341,165.47,165.37,1.2916]
[1730837092971,3.022,165.44,165.37,1.2916]
[1730837093171,18.59311341,165.47,165.37,1.2916]
[1730837093578,3.022,165.44,165.37,1.2916]
[1730837093772,18.59311341,165.47,165.37,1.2916]
[1730837094281,18.59311341,165.47,165.35,5.26]
[1730837094780,3.0229,165.4,165.35,5.26]
[1730837094972,19.86001341,165.5,165.35,5.26]
[1730837095874,18.59311341,165.48,165.35,5.26]
[1730837096187,3.023,165.39,165.35,5.26]
[1730837096376,18.59311341,165.48,165.35,5.26]
[1730837096571,3.0229,165.4,165.35,8.2837]
[1730837096769,18.59311341,165.48,165.35,5.26]
[1730837097577,25.12001341,165.5,165.35,5.26]
[1730837097778,25.12001341,165.5,165.4,3.0226]
[1730837097779,3.0219,165.45,165.4,3.0226]
[1730837098184,1.2669,165.5,165.38,18.59311341]
[1730837098387,3.0218,165.46,165.42,3.0224]
[1730837098588,3.0218,165.46,165.38,18.59311341]
[1730837099076,3.0218,165.46,165.41,3.0225]
[1730837099275,3.0215,165.47,165.38,18.59311341]
[1730837099476,1.2669,165.5,165.41,3.0225]
[1730837099887,3.0217,165.46,165.38,18.59311341]
[1730837100278,3.0217,165.46,165.41,3.0225]
[1730837100483,3.0215,165.47,165.41,18.59311341]
[1730837100680,1.2669,165.5,165.41,23.85311341]
[1730837101684,1.3288,165.53,165.41,23.85311341]
[1730837102080,3.021,165.5,165.42,2.6965]
[1730837102281,3.021,165.5,165.42,3.9526]
[1730837102483,18.59311341,165.59,165.45,18.59311341]
[1730837102676,22.75471341,165.59,165.47,18.59311341]
[1730837102890,4.1616,165.59,165.49,18.59311341]
[1730837103181,5.3332,165.6,165.53,18.59311341]
[1730837103182,0.3532,165.6,165.53,18.59311341]
[1730837103378,0.3532,165.6,165.5,18.59311341]
[1730837103780,3.3724,165.6,165.54,3.0201]
[1730837103981,0.3532,165.6,165.53,4.98]
[1730837104182,0.3532,165.6,165.55,18.59311341]
[1730837104390,0.3532,165.6,165.57,3.0195]
[1730837104890,0.3532,165.6,165.55,18.59311341]
[1730837105483,0.3532,165.6,165.57,3.0197]
[1730837105791,0.3532,165.6,165.54,4.96]
[1730837105990,0.3532,165.6,165.51,2.7635]
[1730837106187,0.3532,165.6,165.4,361.59311341]
[1730837106188,18.59311341,165.59,165.45,19.97591341]
[1730837106387,1.3523,165.58,165.45,19.97591341]
[1730837106888,2.7054,165.57,165.45,19.97591341]
[1730837107185,2.7054,165.57,165.45,22.99771341]
[1730837107784,2.7054,165.57,165.46,4.96]
[1730837109696,2.7054,165.57,165.45,22.99771341]
[1730837109697,2.7054,165.57,165.45,19.97591341]
[1730837109885,18.59311341,165.53,165.41,2.7308]
[1730837110194,3.0212,165.49,165.44,18.59311341]
[1730837110385,23.55311341,165.56,165.42,18.59311341]
[1730837110582,41.91311341,165.56,165.42,18.59311341]
[1730837110790,41.91311341,165.56,165.41,7.6908]
[1730837110791,18.59311341,165.53,165.41,7.6908]
[1730837110992,3.022,165.45,165.41,2.7308]
[1730837111187,36.95311341,165.53,165.36,18.59311341]
[1730837111386,36.95311341,165.53,165.37,4.96]
[1730837111387,18.59311341,165.53,165.37,4.96]
[1730837111587,3.022,165.45,165.39,3.0228]
[1730837111894,18.59311341,165.53,165.39,3.0228]
[1730837112198,18.59311341,165.48,165.35,1.2971]
[1730837112384,18.59311341,165.45,165.23,43.52]
[1730837112590,18.59311341,165.45,165.3,23.55311341]
[1730837112894,18.59311341,165.45,165.32,4.2849]
[1730837113097,18.59311341,165.46,165.32,1.2608]
[1730837113595,18.59311341,165.46,165.32,19.85391341]
[1730837113795,4.013,165.47,165.32,19.85391341]
[1730837113987,4.013,165.47,165.35,18.59311341]
[1730837114289,4.013,165.47,165.36,4.98]
[1730837115291,18.59311341,165.46,165.33,2.7424]
[1730837116391,3.0233,165.38,165.33,2.7424]
[1730837116792,18.59311341,165.46,165.33,2.7424]
[1730837116990,18.59311341,165.46,165.33,1.3665]
[1730837117590,3.0224,165.43,165.35,3.0236]
[1730837117892,4.013,165.47,165.33,1.3665]
[1730837118098,3.0228,165.4,165.35,18.59311341]
[1730837118399,4.013,165.47,165.35,18.59311341]
[1730837119795,3.0222,165.44,165.38,3.023]
[1730837119990,4.013,165.47,165.38,3.023]
[1730837120697,4.013,165.47,165.39,3.0228]
[1730837120892,4.013,165.47,165.37,23.57311341]
[1730837121696,4.013,165.47,165.35,18.59311341]
[1730837121995,18.59311341,165.46,165.33,1.3665]
[1730837122395,18.59311341,165.46,165.34,3.0237]
[1730837122691,18.59311341,165.46,165.33,1.3665]
[1730837123299,3.0229,165.4,165.34,3.0237]
[1730837123798,4.013,165.47,165.35,18.59311341]
[1730837123996,6.038,165.61,165.38,18.59311341]
[1730837124294,6.038,165.61,165.39,4.98]
[1730837124295,3.0218,165.46,165.39,4.98]
[1730837124495,7.5876,165.53,165.39,4.98]
[1730837124496,18.59311341,165.51,165.39,4.98]
[1730837124798,18.59311341,165.46,165.33,1.3665]
[1730837124994,18.59311341,165.43,165.33,1.3665]
[1730837125195,4.98,165.45,165.33,1.3665]
[1730837125397,3.0217,165.47,165.38,18.59311341]
[1730837125697,1.304,165.5,165.39,4.98]
[1730837126092,1.304,165.5,165.42,3.0224]
[1730837126391,1.304,165.5,165.39,4.98]
[1730837126586,1.304,165.5,165.41,3.0225]
[1730837126791,1.304,165.5,165.39,4.98]
[1730837127191,3.0216,165.47,165.39,6.3047]
[1730837127394,1.304,165.5,165.39,6.3047]
[1730837127593,1.304,165.5,165.41,18.59311341]
[1730837127994,1.304,165.5,165.43,3.0222]
[1730837128195,1.304,165.5,165.39,6.3047]
[1730837128798,3.0215,165.47,165.39,6.3047]
[1730837129002,2.6076,165.53,165.45,3.0219]
[1730837129302,2.6076,165.53,165.41,18.59311341]
[1730837129896,2.6076,165.53,165.42,2.7576]
[1730837130097,3.0209,165.51,165.46,3.0216]
[1730837130399,2.6076,165.53,165.42,2.7576]
[1730837130597,3.021,165.5,165.42,2.7576]
[1730837130804,3.021,165.5,165.45,3.0217]
[1730837131402,3.021,165.5,165.46,3.0216]
[1730837131700,2.6076,165.53,165.42,2.7576]
[1730837132198,3.0213,165.49,165.42,2.7576]
[1730837132395,2.6076,165.53,165.44,3.0219]
[1730837132896,2.6076,165.53,165.42,2.7576]
[1730837132897,3.0213,165.49,165.42,2.7576]
[1730837133397,21.20071341,165.53,165.39,1.3247]
[1730837133603,21.20071341,165.53,165.39,6.4047]
[1730837133794,3.022,165.45,165.41,3.0225]
[1730837133995,21.20071341,165.53,165.41,3.0225]
[1730837134395,3.022,165.45,165.41,3.0225]
[1730837134695,18.59311341,165.5,165.37,5.08]
[1730837134894,18.59311341,165.5,165.35,18.59311341]
[1730837134895,18.59311341,165.47,165.35,18.59311341]
[1730837135093,1.3029,165.46,165.33,1.2666]
[1730837135296,18.59311341,165.44,165.33,1.2666]
[1730837135499,3.0232,165.38,165.32,21.34131341]
[1730837135705,2.7177,165.43,165.32,21.34131341]
[1730837135907,2.7177,165.43,165.3,5.08]
[1730837136104,2.7177,165.43,165.29,23.67311341]
[1730837136105,18.59311341,165.42,165.29,23.67311341]
[1730837136299,18.59311341,165.42,165.32,3.0242]
[1730837136606,3.0234,165.37,165.29,23.67311341]
[1730837137094,18.59311341,165.42,165.29,23.67311341]
[1730837137602,18.59311341,165.42,165.32,3.0242]
[1730837138206,3.0228,165.4,165.32,3.0242]
[1730837138407,21.31081341,165.43,165.32,3.0242]
[1730837138906,3.0232,165.38,165.32,3.0242]
[1730837139204,21.31081341,165.43,165.29,18.59311341]
[1730837139408,3.0232,165.38,165.29,18.59311341]
[1730837139704,21.31081341,165.43,165.29,18.59311341]
[1730837139705,21.31081341,165.43,165.31,3.0243]
[1730837140005,21.31081341,165.43,165.29,18.59311341]
[1730837140210,21.31081341,165.43,165.3,3.0244]
[1730837140398,21.31081341,165.43,165.25,2.7482]
[1730837140399,3.024,165.34,165.26,18.59311341]
[1730837140595,18.59311341,165.38,165.25,7.8282]
[1730837140799,6.4497,165.37,165.25,7.8282]
[1730837140997,3.0244,165.32,165.26,3.0252]
[1730837141203,6.4497,165.37,165.26,3.0252]
[1730837141397,6.4497,165.37,165.25,7.8282]
[1730837141600,18.59311341,165.35,165.21,18.59311341]
[1730837141902,18.59311341,165.35,165.21,21.25051341]
[1730837142104,18.59311341,165.33,165.21,1.3079]
[1730837142297,1.3903,165.32,165.21,1.3079]
[1730837142705,3.0249,165.29,165.21,18.59311341]
[1730837143404,3.0253,165.27,165.22,3.026]
[1730837143909,3.0249,165.29,165.24,3.0255]
[1730837144208,1.3903,165.32,165.21,18.59311341]
[1730837144605,3.0251,165.28,165.23,3.0258]
[1730837146308,3.0253,165.27,165.23,3.0258]
[1730837147107,18.59311341,165.29,165.19,3.0264]
[1730837147305,18.59311341,165.29,165.18,1.3764]
[1730837147306,1.2791,165.28,165.18,1.3764]
[1730837147505,1.2791,165.28,165.18,19.96951341]
[1730837147710,1.2594,165.34,165.21,18.59311341]
[1730837147913,23.67311341,165.38,165.24,18.59311341]
[1730837148116,3.0239,165.34,165.28,3.0248]
[1730837148410,3.0239,165.34,165.26,1.3153]
[1730837148610,23.67311341,165.38,165.26,1.3153]
[1730837148801,23.67311341,165.38,165.27,1.3876]
[1730837149210,3.0237,165.35,165.28,3.0248]
[1730837149399,23.67311341,165.38,165.27,1.3876]
[1730837149803,3.0241,165.33,165.29,3.0246]
[1730837150108,23.67311341,165.38,165.25,1.3012]
[1730837150323,3.0243,165.32,165.27,3.025]
[1730837150508,23.67311341,165.38,165.27,3.025]
[1730837150705,18.59311341,165.35,165.23,1.3876]
[1730837150909,3.0247,165.3,165.25,3.0254]
[1730837151220,18.59311341,165.35,165.23,1.3876]
[1730837151413,3.0251,165.28,165.23,3.0259]
[1730837152018,3.0252,165.27,165.23,3.0259]
[1730837152617,3.0249,165.29,165.25,3.0254]
[1730837153121,3.0249,165.29,165.19,1.2972]
[1730837153122,1.293,165.32,165.19,19.89031341]
[1730837153907,1.293,165.32,165.24,3.0256]
[1730837154323,3.0249,165.29,165.24,3.0256]
[1730837154526,1.293,165.32,165.19,19.89031341]
[1730837154710,1.293,165.32,165.22,8.1059]
[1730837154910,18.59311341,165.3,165.19,19.89031341]
[1730837155214,2.7147,165.29,165.2,3.0264]
[1730837155509,3.026,165.23,165.18,1.2904]
[1730837155919,18.59311341,165.28,165.17,6.3473]
[1730837156117,18.59311341,165.28,165.17,5.08]
[1730837156309,18.59311341,165.28,165.13,23.67311341]
[1730837157233,2.7147,165.29,165.16,18.59311341]
[1730837158025,3.0256,165.25,165.16,18.59311341]
[1730837158335,24.96611341,165.32,165.21,18.59311341]
[1730837158336,1.293,165.32,165.21,18.59311341]
[1730837158532,5.08,165.34,165.22,7.7715]
[1730837158733,3.0244,165.31,165.22,9.1076]
[1730837159432,5.08,165.34,165.22,9.1076]
[1730837159835,3.0245,165.31,165.27,3.025]
[1730837160029,1.3771,165.36,165.25,5.08]
[1730837160428,1.3771,165.36,165.31,3.0243]
[1730837160627,1.3771,165.36,165.25,5.08]
[1730837160828,8.17300822,165.56,165.25,5.08]
[1730837160829,18.59311341,165.41,165.28,18.59311341]
[1730837161240,18.59311341,165.41,165.25,5.08]
[1730837161443,18.59311341,165.38,165.25,5.08]
[1730837162038,3.0239,165.34,165.3,3.0245]
[1730837162236,18.59311341,165.41,165.28,4.84]
[1730837162443,21.27611341,165.43,165.28,23.43311341]
[1730837162934,1.3617,165.46,165.33,18.59311341]
[1730837163132,2.683,165.49,165.36,18.59311341]
[1730837163342,18.59311341,165.51,165.39,18.59311341]
[1730837163643,18.59311341,165.51,165.4,4.84]
[1730837164347,3.0215,165.47,165.42,3.0224]
[1730837164644,18.59311341,165.51,165.4,4.84]
[1730837164847,3.0224,165.43,165.4,4.84]
[1730837165039,18.59311341,165.49,165.4,4.84]
[1730837165342,1.3232,165.48,165.4,4.84]
[1730837165538,18.59311341,165.46,165.34,3.9167]
[1730837165743,18.59311341,165.43,165.34,3.9167]
[1730837166043,3.024,165.34,165.29,1.2853]
[1730837166242,18.59311341,165.4,165.29,1.2853]
[1730837166437,18.59311341,165.37,165.28,4.84]
[1730837166638,3.0244,165.32,165.28,4.84]
[1730837167238,3.0244,165.31,165.25,5.6997]
[1730837167546,18.59311341,165.37,165.25,7.5144]
[1730837167741,3.0243,165.32,165.25,7.5144]
[1730837167938,2.6856,165.38,165.07,2.7683917]
[1730837168246,18.59311341,165.28,165.12,18.59311341]
[1730837168444,3.0261,165.22,165.16,3.0271]
[1730837169547,4.84,165.28,165.2,3.0264]
[1730837169736,4.84,165.28,165.15,18.59311341]
[1730837170342,3.026,165.23,165.15,18.59311341]
[1730837170539,2.6856,165.38,165.15,18.59311341]
[1730837170739,2.6856,165.38,165.13,4.84]
[1730837170740,18.59311341,165.33,165.18,18.59311341]
[1730837170942,3.0248,165.29,165.23,3.0257]
[1730837171843,30.20000834,165.3,165.2,2.5965]
[1730837172242,30.20000834,165.27,165.19,4.84]
[1730837172434,3.0257,165.24,165.15,4.84]
[1730837172641,30.20000834,165.27,165.15,4.84]
[1730837173037,3.0259,165.23,165.17,3.0268]
[1730837173236,30.20000834,165.27,165.15,4.84]
[1730837173443,2.6837,165.29,165.15,4.84]
[1730837173644,3.0255,165.25,165.19,3.0266]
[1730837173946,3.0255,165.25,165.15,4.84]
[1730837174152,3.0254,165.26,165.2,3.0263]
[1730837174342,2.6837,165.29,165.15,4.84]
[1730837175050,4.84,165.32,165.17,30.20000834]
[1730837175248,35.04000834,165.33,165.17,30.20000834]
[1730837175647,30.20000834,165.3,165.17,30.20000834]
[1730837175956,3.0251,165.28,165.23,3.0258]
[1730837176455,3.0262,165.22,165.17,3.0268]
[1730837176658,30.20000834,165.27,165.14,30.20000834]
[1730837176848,30.20000834,165.27,165.15,4.84]
[1730837177042,3.0258,165.24,165.15,4.84]
[1730837177550,3.0255,165.26,165.15,4.84]
[1730837177753,30.20000834,165.27,165.15,4.84]
[1730837178154,3.0255,165.26,165.21,3.0262]
[1730837178454,30.20000834,165.3,165.15,4.84]